fUSD/lending_fUSD_20260123
["ID","MTS","AMOUNT","RATE_DAILY","PERIOD"]
[403082782,1769137833509,-500.0,0.00016807,2]
[403082783,1769137833519,-500.0,0.00016807,2]
[403082784,1769137833528,-500.0,0.00016807,2]
[403082785,1769137833538,-500.0,0.00016807,2]
[403082786,1769137833548,-500.0,0.00016807,2]
[403082787,1769137833557,-500.0,0.00016807,2]
[403082788,1769137833567,-151.0,0.00016807,2]
[403082789,1769137833577,-151.0,0.00016807,2]
[403082790,1769137833587,-151.0,0.00016807,2]
[403082791,1769137833596,-151.0,0.00016807,2]
[403082792,1769137833605,-151.0,0.00016807,2]
[403082793,1769137833616,-151.0,0.00016807,2]
[403082794,1769137833625,-151.0,0.00016807,2]
[403082795,1769137833635,-151.0,0.00016807,2]
[403082796,1769137833644,-151.0,0.00016807,2]
[403082797,1769137833653,-151.0,0.00016807,2]
[403082798,1769137833663,-151.0,0.00016807,2]
[403082799,1769137833673,-500.0,0.00016807,2]
[403082800,1769137833682,-500.0,0.00016807,2]
[403082801,1769137833692,-500.0,0.00016807,2]
[403082802,1769137833700,-500.0,0.00016807,2]
[403082803,1769137833711,-500.0,0.00016807,2]
[403082804,1769137833719,-500.0,0.00016807,2]
[403082805,1769137833729,-500.0,0.00016807,2]
[403082806,1769137833738,-500.0,0.00016807,2]
[403082807,1769137833747,-500.0,0.00016807,2]
[403082808,1769137833756,-500.0,0.00016807,2]
[403082809,1769137833766,-500.0,0.00016807,2]
[403082810,1769137833775,-106665.98,0.00016817,2]
[403082811,1769137833785,-4882.61866225,0.00016847,2]
[403082812,1769137833794,-166.66,0.00016878,2]
[403082813,1769137833804,-4882.61866225,0.00016978,2]
[403082814,1769137833814,-1000.0,0.00016986,2]
[403082815,1769137833824,-250.0,0.00017,2]
[403082816,1769137833833,-161.0,0.00017,2]
[403082817,1769137833843,-161.0,0.00017,2]
[403082818,1769137833852,-300.0,0.00017,2]
[403082819,1769137833862,-250.0,0.00017,2]
[403082820,1769137833871,-150.77014404,0.00017,2]
[403082821,1769137833881,-200.0,0.00017,2]
[403082822,1769137833890,-202.65054832,0.00017,2]
[403082823,1769137833905,-265.88,0.00017011,2]
[403082824,1769137833915,-300.0,0.00017053,2]
[403082825,1769137833925,-195.0,0.00017092,2]
[403082826,1769137833935,-201.0,0.00017094,2]
[403082827,1769137833945,-4882.61866225,0.0001711,2]
[403082828,1769137833955,-1683.0,0.00017133,2]
[403082829,1769137833964,-1680.0,0.00017138,2]
[403082830,1769137833974,-200.0,0.00017174,2]
[403082831,1769137833986,-3210.0,0.00017232,2]
[403082832,1769137833996,-4882.61866225,0.00017242,2]
[403082833,1769137834006,-1000.0,0.0001726,2]
[403082834,1769137834015,-277.20668162,0.00017319,2]
[403082835,1769137834026,-4882.61866225,0.00017373,2]
[403082836,1769137834035,-4882.61866225,0.00017505,2]
[403082837,1769137834046,-1110.569,0.00017521,2]
[403082838,1769137834055,-191.72825984,0.00017521,2]
[403082839,1769137834064,-8940.29801755,0.00017526,2]
[403082840,1769137834074,-1000.0,0.00017534,2]
[403082841,1769137834084,-1061.20111949,0.00017537,2]
[403082842,1769137834096,-165.24,0.00017563,2]
[403082843,1769137834106,-151.0,0.0001757,2]
[403082844,1769137834118,-500.0,0.00017572,2]
[403082845,1769137834128,-500.0,0.00017572,2]
[403082846,1769137834137,-500.0,0.00017572,2]
[403082847,1769137834148,-430.2472558,0.00017572,2]
[403082848,1769137834157,-500.0,0.00017572,2]
[403082849,1769137834166,-557.02336865,0.00017572,2]
[403082850,1769137834177,-500.0,0.00017572,2]
[403082851,1769137834187,-500.0,0.00017572,2]
[403082852,1769137834196,-500.0,0.00017572,2]
[403082853,1769137834206,-589.64888391,0.00017572,2]
[403082854,1769137834215,-4307.0,0.00017572,2]
[403082855,1769137834226,-24817.88547022,0.00017573,2]
[403082856,1769137834240,-25881.50387183,0.00017573,2]
[403082857,1769137834251,-53198.67797679,0.00017573,2]
[403082868,1769137838138,-500.0,0.00016813,2]
[403082869,1769137838148,-500.0,0.00016813,2]
[403082870,1769137838158,-500.0,0.00016813,2]
[403082871,1769137838167,-500.0,0.00016813,2]
[403082872,1769137838177,-500.0,0.00016813,2]
[403082873,1769137838187,-500.0,0.00016813,2]
[403082874,1769137838196,-500.0,0.00016813,2]
[403082875,1769137838206,-500.0,0.00016813,2]
[403082876,1769137838216,-500.0,0.00016813,2]
[403082877,1769137838225,-242.13421654,0.00016813,2]
[403082878,1769137838234,-500.0,0.00016813,2]
[403082879,1769137838244,-500.0,0.00016813,2]
[403082880,1769137838254,-500.0,0.00016813,2]
[403082881,1769137838264,-500.0,0.00016813,2]
[403082882,1769137838273,-500.0,0.00016813,2]
[403082883,1769137838283,-500.0,0.00016813,2]
[403082884,1769137838293,-500.0,0.00016813,2]
[403082885,1769137838302,-500.0,0.00016813,2]
[403082886,1769137838312,-500.0,0.00016813,2]
[403082887,1769137838322,-500.0,0.00016813,2]
[403082888,1769137838331,-500.0,0.00016813,2]
[403082889,1769137838341,-500.0,0.00016813,2]
[403082890,1769137838351,-500.0,0.00016813,2]
[403082891,1769137838361,-500.0,0.00016813,2]
[403082892,1769137838371,-500.0,0.00016813,2]
[403082893,1769137838380,-500.0,0.00016813,2]
[403082894,1769137838390,-500.0,0.00016813,2]
[403082895,1769137838400,-500.0,0.00016813,2]
[403082896,1769137838410,-500.0,0.00016813,2]
[403082897,1769137838420,-500.0,0.00016813,2]
[403082898,1769137838429,-500.0,0.00016813,2]
[403082899,1769137838439,-500.0,0.00016813,2]
[403082900,1769137838448,-500.0,0.00016813,2]
[403082901,1769137838459,-520.41111351,0.00016813,2]
[403082902,1769137838468,-500.0,0.00016813,2]
[403082903,1769137838477,-707718.29028116,0.00017573,2]
[403082904,1769137838487,-1061.20111948,0.00017577,2]
[403082905,1769137838496,-1061.20111948,0.00017618,2]
[403082906,1769137838505,-4882.61866225,0.00017637,2]
[403082907,1769137838515,-500.0,0.00017645,2]
[403082908,1769137838525,-500.0,0.00017645,2]
[403082909,1769137838534,-157.66821442,0.00017657,2]
[403082910,1769137838543,-290.72145165,0.00017657,2]
[403082911,1769137838553,-500.0,0.00017657,2]
[403082913,1769137838563,-578.28467801,0.00017657,2]
[403082914,1769137838572,-1061.20111948,0.00017658,2]
[403082915,1769137838582,-500.0,0.00017673,2]
[403082916,1769137838592,-511.49760942,0.00017673,2]
[403082917,1769137838601,-500.0,0.00017673,2]
[403082919,1769137838610,-507.68701346,0.00017673,2]
[403082920,1769137838619,-1061.20111948,0.00017698,2]
[403082922,1769137838629,-500.0,0.00017699,2]
[403082924,1769137838638,-150.0,0.00017699,2]
[403082926,1769137838647,-150.0,0.00017699,2]
[403082927,1769137838656,-150.0,0.00017699,2]
[403082928,1769137838665,-500.0,0.00017699,2]
[403082929,1769137838674,-204.47202902,0.00017699,2]
[403082930,1769137838683,-547.0,0.00017699,2]
[403082931,1769137838693,-500.0,0.00017699,2]
[403082932,1769137838702,-500.0,0.00017699,2]
[403082933,1769137838712,-150.0,0.00017699,2]
[403082934,1769137838721,-500.0,0.00017699,2]
[403082935,1769137838730,-150.0,0.00017699,2]
[403082936,1769137838739,-150.0,0.00017699,2]
[403082937,1769137838747,-150.0,0.00017699,2]
[403082938,1769137838757,-500.0,0.00017699,2]
[403082939,1769137838766,-500.0,0.00017725,2]
[403082940,1769137838775,-1061.20111948,0.00017739,2]
[403082941,1769137838785,-500.0,0.00017754,2]
[403082942,1769137838794,-150.0,0.00017754,2]
[403082943,1769137838803,-150.0,0.00017754,2]
[403082944,1769137838813,-150.0,0.00017754,2]
[403082945,1769137838822,-500.0,0.00017754,2]
[403082946,1769137838831,-547.0,0.00017754,2]
[403082947,1769137838841,-500.0,0.00017754,2]
[403082948,1769137838850,-500.0,0.00017754,2]
[403082949,1769137838860,-150.0,0.00017754,2]
[403082950,1769137838870,-500.0,0.00017754,2]
[403082951,1769137838879,-150.0,0.00017754,2]
[403082952,1769137838889,-150.0,0.00017754,2]
[403082953,1769137838901,-500.0,0.00017754,2]
[403082954,1769137838910,-4882.61866225,0.00017768,2]
[403082955,1769137838920,-1061.20111948,0.00017779,2]
[403082956,1769137838929,-642.33986888,0.0001778,2]
[403082957,1769137838939,-565.25,0.000178,2]
[403082958,1769137838948,-500.0,0.00017808,2]
[403082959,1769137838959,-1000.0,0.00017808,2]
[403082960,1769137838970,-354.0,0.00017809,2]
[403082961,1769137838980,-189.89164013,0.00017809,2]
[403082962,1769137838989,-200.0,0.00017809,2]
[403082963,1769137838999,-463.79054865,0.00017809,2]
[403082964,1769137839009,-547.0,0.00017809,2]
[403082965,1769137839019,-503.6669669,0.00017809,2]
[403082966,1769137839029,-500.0,0.00017809,2]
[403082967,1769137839039,-200.0,0.00017809,2]
[403082968,1769137839049,-500.0,0.00017809,2]
[403082969,1769137839059,-150.0,0.00017809,2]
[403082970,1769137839069,-160.66639761,0.00017809,2]
[403082971,1769137839078,-500.0,0.00017809,2]
[403082972,1769137839087,-1000.0,0.00017811,2]
[403082973,1769137839097,-1061.20111948,0.00017819,2]
[403082974,1769137839107,-666.66666,0.0001782,2]
[403082975,1769137839117,-666.66667,0.0001782,2]
[403082976,1769137839126,-935.0,0.0001782,2]
[403082977,1769137839136,-1139.862,0.00017823,2]
[403082978,1769137839145,-1061.20111948,0.0001786,2]
[403082979,1769137839154,-500.0,0.00017863,2]
[403082980,1769137839164,-547.0,0.00017863,2]
[403082981,1769137839173,-500.0,0.00017863,2]
[403082982,1769137839182,-500.0,0.00017863,2]
[403082983,1769137839192,-150.0,0.00017863,2]
[403082984,1769137839201,-500.0,0.00017863,2]
[403082985,1769137839211,-195.25638122,0.00017871,2]
[403082986,1769137839220,-515.2846793,0.00017871,2]
[403082987,1769137839230,-909.02325293,0.00017871,2]
[403082988,1769137839239,-1359.84442127,0.00017871,2]
[403082989,1769137839248,-1839.915,0.00017871,2]
[403082990,1769137839258,-255.33658603,0.000179,3]
[403082991,1769137839267,-9962.5558,0.000179,2]
[403082992,1769137839277,-161.0,0.000179,3]
[403082993,1769137839287,-161.0,0.000179,3]
[403082994,1769137839297,-1000.0,0.000179,2]
[403082995,1769137839307,-162.0,0.000179,3]
[403082996,1769137839316,-10000.0,0.000179,2]
[403082997,1769137839326,-4882.61866225,0.000179,2]
[403082998,1769137839335,-12504.6292127,0.000179,2]
[403082999,1769137839344,-1061.20111948,0.000179,2]
[403083000,1769137839354,-308.03994582,0.00017918,2]
[403083001,1769137839363,-547.0,0.00017918,2]
[403083002,1769137839372,-339.97005786,0.00017918,2]
[403083003,1769137839381,-500.0,0.00017918,2]
[403083004,1769137839390,-218.75385845,0.00017918,2]
[403083005,1769137839399,-314.98616488,0.00017918,2]
[403083006,1769137839408,-251.084249,0.00017972,2]
[403083007,1769137839417,-547.0,0.00017973,2]
[403083008,1769137839426,-500.0,0.00017973,2]
[403083009,1769137839435,-150.0,0.00017973,2]
[403083010,1769137839445,-150.0,0.00017973,2]
[403083011,1769137839454,-165.24,0.0001799,2]
[403083012,1769137839464,-151.0,0.00017997,2]
[403083013,1769137839473,-307.93843563,0.00017999,2]
[403083014,1769137839483,-500.0,0.00017999,2]
[403083015,1769137839492,-500.0,0.00017999,2]
[403083016,1769137839502,-500.0,0.00017999,2]
[403083017,1769137839512,-500.0,0.00017999,2]
[403083018,1769137839521,-380.69489282,0.00017999,2]
[403083019,1769137839530,-500.0,0.00017999,2]
[403083020,1769137839539,-500.0,0.00017999,2]
[403083021,1769137839548,-500.0,0.00017999,2]
[403083022,1769137839557,-500.0,0.00017999,2]
[403083023,1769137839566,-500.0,0.00017999,2]
[403083024,1769137839575,-500.0,0.00017999,2]
[403083025,1769137839584,-500.0,0.00017999,2]
[403083026,1769137839593,-500.0,0.00017999,2]
[403083027,1769137839602,-500.0,0.00017999,2]
[403083028,1769137839610,-500.0,0.00017999,2]
[403083029,1769137839619,-500.0,0.00017999,2]
[403083030,1769137839628,-500.0,0.00017999,2]
[403083031,1769137839637,-500.0,0.00017999,2]
[403083032,1769137839645,-341.67615774,0.00017999,2]
[403083033,1769137839655,-300.0,0.00017999,2]
[403083034,1769137839663,-90089.24384422,0.00018,2]
[403083035,1769137839709,-6089.79108373,0.00018,2]
[403083036,1769137839720,-672.57740398,0.00018,2]
[403083037,1769137839731,-1158.42853543,0.00018,2]
[403083038,1769137840231,-151.0,0.00016276,2]
[403083039,1769137840241,-5904541.60781243,0.00018,2]
[403083040,1769137840251,-425790.05848894,0.00018,2]
[403083041,1769137840260,-12050.97224531,0.00018,2]
[403083042,1769137840269,-1645234.22339251,0.00018,2]
[403083043,1769137840288,-600.719909,0.00018,2]
[403083044,1769137840299,-1330.08239876,0.00018,2]
[403083045,1769137840311,-4669.82032168,0.00018,2]
[403083055,1769137843380,-154.35518321,0.00018,2]
[403083056,1769137843391,-3850.15643171,0.00018,2]
[403083059,1769137846155,-9523.14296502,0.00018,2]
[403083060,1769137846266,-8101.92395613,0.00018,2]
[403083061,1769137846280,-37148.62673143,0.00018,2]
[403083062,1769137846296,-49780.68568887,0.00018,2]
[403083072,1769138304757,8177.74286486,0.000226,120]
[403083075,1769138405682,512607.62175722,0.00022,120]
[403083078,1769138429855,3669.9,0.00013013,2]
[403083085,1769138637343,160.04,0.00012503,2]
[403083092,1769138725563,1028.31734589,0.000108,2]
[403083093,1769138735882,5000.0,0.0001,2]
[403083094,1769138760197,141.75265411,8e-05,2]
[403083095,1769138760223,3356.73946908,8e-05,2]
[403083102,1769138832599,3824.42660411,0.0001305,2]
[403083105,1769138868648,476.10981014,0.00014,2]
[403083109,1769138895746,2223.42365712,0.00015,2]
[403083115,1769138912541,80204.01,0.00016,4]
[403083130,1769139032261,-280.0,0.00015546,2]
[403083131,1769139032270,-195.0,0.00015546,2]
[403083132,1769139032280,-763.93284746,0.00015546,2]
[403083133,1769139032316,-1831.0046154,0.00015546,2]
[403083134,1769139032446,-645.06253714,0.00015546,2]
[403083135,1769139032456,-195.0,0.00015576,2]
[403083136,1769139032465,-195.0,0.00015588,2]
[403083137,1769139032474,-250.0,0.00015606,2]
[403083139,1769139032483,-1000.0,0.00015665,2]
[403083141,1769139032492,-250.0,0.0001574,2]
[403083143,1769139032501,-623.0,0.0001588,2]
[403083144,1769139032510,-150.0,0.00015913,2]
[403083146,1769139032520,-360.03,0.00015918,2]
[403083148,1769139032529,-200.0,0.00015947,2]
[403083150,1769139032538,-660.01,0.00015984,2]
[403083152,1769139032547,-151.0,0.0001599,2]
[403083154,1769139032556,-1200.0,0.00015999,2]
[403083157,1769139032566,-219.0,0.00015999,2]
[403083159,1769139032575,-300.0,0.00015999,2]
[403083161,1769139032584,-186.0,0.00015999,2]
[403083163,1769139032593,-25235.04475266,0.00016,4]
[403083165,1769139032602,-200.0,0.0001634,2]
[403083167,1769139032612,-6154.59535332,0.00016398,2]
[403083169,1769139032621,-550.0,0.00016399,2]
[403083171,1769139032630,-1884.4781351,0.00016399,2]
[403083173,1769139032640,-624398.77024387,0.000164,2]
[403083175,1769139032651,-11624.60677957,0.000164,2]
[403083177,1769139032663,-15916.90952735,0.000164,2]
[403083197,1769139038368,-828.36340109,0.00016399,2]
[403083198,1769139038380,-828.36340109,0.00016399,2]
[403083199,1769139038391,-645.1582707,0.00016399,2]
[403083200,1769139038404,-183.20513039,0.00016399,2]
[403083201,1769139038415,-400.52365961,0.00016399,2]
[403083202,1769139038428,-427.83974148,0.00016399,2]
[403083203,1769139038438,-419.16025852,0.00016399,2]
[403083204,1769139038455,-409.20314257,0.00016399,2]
[403083205,1769139038466,-593.42635237,0.00016399,2]
[403083206,1769139038479,-234.93704872,0.00016399,2]
[403083207,1769139038491,-828.36340109,0.00016399,2]
[403083208,1769139038502,-606.14778021,0.00016399,2]
[403083209,1769139038534,-222.21562088,0.00016399,2]
[403083210,1769139038544,-828.36340109,0.00016399,2]
[403083211,1769139038555,-828.36340109,0.00016399,2]
[403083212,1769139038566,-828.36340109,0.00016399,2]
[403083213,1769139038577,-828.36340109,0.00016399,2]
[403083214,1769139038589,-828.36340109,0.00016399,2]
[403083215,1769139038600,-828.36340109,0.00016399,2]
[403083216,1769139038610,-828.36340109,0.00016399,2]
[403083218,1769139038621,-828.36340109,0.00016399,2]
[403083221,1769139038632,-828.36340109,0.00016399,2]
[403083223,1769139038643,-828.36340109,0.00016399,2]
[403083225,1769139038653,-828.36340109,0.00016399,2]
[403083227,1769139038664,-828.36340109,0.00016399,2]
[403083229,1769139038675,-828.36340109,0.00016399,2]
[403083232,1769139038686,-828.36340109,0.00016399,2]
[403083234,1769139038697,-828.36340109,0.00016399,2]
[403083236,1769139038707,-828.36340109,0.00016399,2]
[403083238,1769139038718,-828.36340109,0.00016399,2]
[403083240,1769139038728,-828.36340109,0.00016399,2]
[403083242,1769139038739,-828.36340109,0.00016399,2]
[403083245,1769139038750,-828.36340109,0.00016399,2]
[403083247,1769139038761,-828.36340109,0.00016399,2]
[403083249,1769139038771,-828.36340109,0.00016399,2]
[403083251,1769139038782,-828.36340109,0.00016399,2]
[403083253,1769139038793,-828.36340109,0.00016399,2]
[403083255,1769139038803,-828.36340109,0.00016399,2]
[403083258,1769139038814,-828.36340109,0.00016399,2]
[403083260,1769139038824,-828.36340109,0.00016399,2]
[403083262,1769139038835,-828.36340109,0.00016399,2]
[403083263,1769139038845,-828.36340109,0.00016399,2]
[403083264,1769139038856,-828.36340109,0.00016399,2]
[403083265,1769139038867,-828.36340109,0.00016399,2]
[403083266,1769139038877,-828.36340109,0.00016399,2]
[403083267,1769139038889,-828.36340109,0.00016399,2]
[403083268,1769139038900,-828.36340109,0.00016399,2]
[403083269,1769139038911,-828.36340109,0.00016399,2]
[403083270,1769139038922,-828.36340109,0.00016399,2]
[403083271,1769139038934,-828.36340109,0.00016399,2]
[403083272,1769139038945,-828.36340109,0.00016399,2]
[403083273,1769139038956,-828.36340109,0.00016399,2]
[403083274,1769139038967,-828.36340109,0.00016399,2]
[403083275,1769139038978,-828.36340109,0.00016399,2]
[403083276,1769139038990,-828.36340109,0.00016399,2]
[403083277,1769139039001,-828.36340109,0.00016399,2]
[403083278,1769139039012,-828.36340109,0.00016399,2]
[403083279,1769139039023,-828.36340109,0.00016399,2]
[403083280,1769139039034,-828.36340109,0.00016399,2]
[403083281,1769139039045,-828.36340109,0.00016399,2]
[403083282,1769139039056,-828.36340109,0.00016399,2]
[403083283,1769139039067,-828.36340109,0.00016399,2]
[403083284,1769139039079,-828.36340109,0.00016399,2]
[403083285,1769139039090,-828.36340109,0.00016399,2]
[403083286,1769139039101,-828.36340109,0.00016399,2]
[403083287,1769139039111,-348059.71344921,0.000164,2]
[403083288,1769139039122,-500.0,0.00016438,2]
[403083289,1769139039133,-500.0,0.00016438,2]
[403083290,1769139039144,-500.0,0.00016438,2]
[403083291,1769139039155,-29091.598532,0.000165,2]
[403083292,1769139039168,-2425.94,0.00016508,2]
[403083293,1769139039179,-360.03,0.00016515,2]
[403083294,1769139039189,-1326.6415,0.00016516,2]
[403083295,1769139039201,-1464.78559872,0.00016574,2]
[403083296,1769139039211,-4620.29495179,0.00016574,2]
[403083297,1769139039222,-955.08100755,0.00016574,2]
[403083298,1769139039233,-523.75609166,0.00016606,2]
[403083299,1769139039247,-854.2589148,0.00016606,2]
[403083300,1769139039259,-500.0,0.00016606,2]
[403083301,1769139039270,-500.0,0.00016606,2]
[403083302,1769139039280,-500.0,0.00016606,2]
[403083303,1769139039290,-500.0,0.00016606,2]
[403083304,1769139039304,-500.0,0.00016606,2]
[403083305,1769139039315,-623.96629697,0.00016606,2]
[403083306,1769139039325,-151.0,0.00016606,2]
[403083307,1769139039336,-151.0,0.00016606,2]
[403083308,1769139039347,-151.0,0.00016606,2]
[403083309,1769139039357,-151.0,0.00016606,2]
[403083310,1769139039368,-151.0,0.00016606,2]
[403083311,1769139039382,-500.0,0.00016606,2]
[403083312,1769139039392,-151.0,0.00016606,2]
[403083313,1769139039403,-500.0,0.00016606,2]
[403083314,1769139039414,-151.0,0.00016606,2]
[403083315,1769139039425,-500.0,0.00016606,2]
[403083316,1769139039438,-151.0,0.00016606,2]
[403083317,1769139039449,-500.0,0.00016606,2]
[403083318,1769139039459,-151.0,0.00016606,2]
[403083319,1769139039470,-500.0,0.00016606,2]
[403083320,1769139039481,-151.0,0.00016606,2]
[403083321,1769139039494,-500.0,0.00016606,2]
[403083322,1769139039504,-151.0,0.00016606,2]
[403083323,1769139039513,-500.0,0.00016606,2]
[403083324,1769139039522,-500.0,0.00016606,2]
[403083325,1769139039531,-500.0,0.00016606,2]
[403083326,1769139039540,-587.19568972,0.00016606,2]
[403083327,1769139039550,-500.0,0.00016612,2]
[403083328,1769139039559,-578.28467801,0.00016612,2]
[403083329,1769139039568,-157.66821442,0.00016612,2]
[403083330,1769139039577,-500.0,0.00016615,2]
[403083331,1769139039586,-500.0,0.00016615,2]
[403083332,1769139039595,-623.0,0.00016674,2]
[403083333,1769139039604,-9962.5558,0.00016717,2]
[403083334,1769139039614,-1000.0,0.00016717,2]
[403083335,1769139039623,-955.08100753,0.00016721,2]
[403083336,1769139039632,-197.64,0.00016723,2]
[403083337,1769139039642,-4620.29495177,0.00016763,2]
[403083338,1769139039651,-336.77,0.00016803,2]
[403083339,1769139039661,-336.77,0.00016847,2]
[403083340,1769139039670,-955.08100753,0.00016869,2]
[403083341,1769139039680,-336.77,0.00016891,2]
[403083342,1769139039689,-336.77,0.00016935,2]
[403083343,1769139039699,-4620.29495177,0.00016953,2]
[403083344,1769139039708,-166.66,0.00016967,2]
[403083345,1769139039718,-336.77,0.0001698,2]
[403083346,1769139039728,-250.0,0.00017,2]
[403083347,1769139039738,-955.08100753,0.00017016,2]
[403083348,1769139039747,-336.77,0.00017024,2]
[403083349,1769139039757,-336.77,0.00017068,2]
[403083350,1769139039766,-13400.0,0.000171,6]
[403083351,1769139039776,-195.0,0.00017101,2]
[403083352,1769139039785,-2500.0,0.00017101,2]
[403083353,1769139039794,-250.0,0.00017101,2]
[403083354,1769139039805,-195.0,0.00017101,2]
[403083355,1769139039814,-445.10708926,0.00017101,2]
[403083360,1769139040275,-360.03,0.00017112,2]
[403083361,1769139040307,-336.77,0.00017112,2]
[403083362,1769139040325,-4620.29495177,0.00017142,2]
[403083363,1769139040339,-336.77,0.00017156,2]
[403083364,1769139040350,-955.08100753,0.00017163,2]
[403083365,1769139040360,-26800.0,0.000172,6]
[403083366,1769139040369,-336.77,0.00017201,2]
[403083367,1769139040381,-336.77,0.00017245,2]
[403083368,1769139040390,-1000.0,0.0001726,2]
[403083369,1769139040400,-336.77,0.00017289,2]
[403083370,1769139040410,-40200.0,0.000173,6]
[403083371,1769139040419,-955.08100753,0.00017311,2]
[403083372,1769139040429,-4620.29495177,0.00017332,2]
[403083373,1769139040441,-336.77,0.00017333,2]
[403083374,1769139040451,-336.77,0.00017378,2]
[403083375,1769139040461,-53600.0,0.000174,6]
[403083376,1769139040470,-336.77,0.00017422,2]
[403083377,1769139040479,-955.08100753,0.00017458,2]
[403083378,1769139040490,-336.77,0.00017466,2]
[403083379,1769139040499,-623.0,0.00017468,2]
[403083380,1769139040508,-565.25,0.000175,2]
[403083381,1769139040517,-67000.0,0.000175,6]
[403083382,1769139040527,-336.77,0.0001751,2]
[403083383,1769139040536,-935.0,0.00017514,2]
[403083384,1769139040547,-4620.29495177,0.00017521,2]
[403083385,1769139040557,-166.66,0.00017527,2]
[403083386,1769139040566,-1000.0,0.00017534,2]
[403083387,1769139040575,-336.77,0.00017554,2]
[403083388,1769139040584,-923.744,0.00017577,2]
[403083389,1769139040594,-1680.0,0.0001758,2]
[403083390,1769139040603,-336.77,0.00017599,2]
[403083391,1769139040613,-13400.0,0.000176,6]
[403083392,1769139040622,-955.08100753,0.00017605,2]
[403083393,1769139040631,-1000.0,0.00017623,2]
[403083394,1769139040640,-4781.37656925,0.0001764,2]
[403083395,1769139040649,-336.77,0.00017643,2]
[403083396,1769139040659,-500.0,0.00017673,2]
[403083397,1769139040668,-507.68701346,0.00017673,2]
[403083398,1769139040677,-500.0,0.00017673,2]
[403083399,1769139040687,-511.49760942,0.00017673,2]
[403083400,1769139040696,-500.0,0.00017699,2]
[403083401,1769139040706,-500.0,0.00017699,2]
[403083402,1769139040715,-500.0,0.00017699,2]
[403083403,1769139040724,-150.0,0.00017699,2]
[403083404,1769139040734,-150.0,0.00017699,2]
[403083406,1769139040743,-150.0,0.00017699,2]
[403083407,1769139040752,-500.0,0.00017699,2]
[403083408,1769139040761,-204.47202902,0.00017699,2]
[403083409,1769139040770,-547.0,0.00017699,2]
[403083410,1769139040779,-500.0,0.00017699,2]
[403083411,1769139040792,-150.0,0.00017699,2]
[403083412,1769139040801,-150.0,0.00017699,2]
[403083413,1769139040810,-150.0,0.00017699,2]
[403083414,1769139040819,-150.0,0.00017699,2]
[403083415,1769139040834,-500.0,0.00017699,2]
[403083416,1769139040845,-500.0,0.00017699,2]
[403083417,1769139040854,-150.0,0.00017699,2]
[403083418,1769139040863,-500.0,0.00017699,2]
[403083419,1769139040872,-13400.0,0.000177,6]
[403083420,1769139040881,-360.03,0.00017709,2]
[403083421,1769139040890,-4620.29495177,0.00017711,2]
[403083422,1769139040899,-955.08100753,0.00017753,2]
[403083423,1769139040908,-500.0,0.00017754,2]
[403083424,1769139040919,-150.0,0.00017754,2]
[403083425,1769139040928,-150.0,0.00017754,2]
[403083426,1769139040937,-150.0,0.00017754,2]
[403083427,1769139040947,-642.33986888,0.00017754,2]
[403083428,1769139040957,-500.0,0.00017754,2]
[403083429,1769139040966,-547.0,0.00017754,2]
[403083430,1769139040975,-150.0,0.00017754,2]
[403083431,1769139040984,-150.0,0.00017754,2]